Cogmind - Beta 14 @@@ ROGUE MODE // 2024.09.09 @ 09:57:13 Player: Dull Result: Destroyed by as-44667 with Assembled Blade Performance ------------- Evolutions (0) 0 Regions Visited (3) 600 Robots Destroyed (21) 105 Value Destroyed (445) 445 Prototype IDs (0) 0 Alien Tech Used (0) 0 Bonus (0) 0 TOTAL SCORE: 1150 Bonus ------- None Cogmind --------- Core Integrity 0/250 Matter 220/300 Energy 90/250 System Corruption 4% Temperature Cool (0) Movement Core (1450) Ox28 Location -10/Exiles Parts ------- > --- POWER (1) -------- Ion Engine > --- PROPULSION (2) --- (None) > --- UTILITY (2) ------ Huge Storage Unit Targeting Computer > --- WEAPON (2) ------- (None) > --- INVENTORY (25) --- Ion Engine Ion Engine Aluminum Leg Aluminum Leg Aluminum Leg Aluminum Leg Aluminum Leg Large Matter Pod (150) Sensor Array Sensor Array Sensor Array Targeting Computer Targeting Computer ECM Suite Small Laser Particle Gun Assault Rifle Assault Rifle Assault Rifle Assault Rifle Light Cannon Grenade Launcher Mining Laser Peak State ------------ > --- POWER ------------ Ion Engine > --- PROPULSION ------- Aluminum Leg Aluminum Leg > --- UTILITY ---------- Improved Heat Sink Small Storage Unit > --- WEAPON ----------- Particle Gun Assault Rifle > --- INVENTORY -------- Ion Engine Aluminum Leg Aluminum Leg Aluminum Leg Large Matter Pod Small Laser Grenade Launcher Mining Laser [Rating: 10] Favorites ----------- Power Light Ion Engine Engine Light Ion Engine Propulsion Aluminum Leg Treads Light Treads Leg Aluminum Leg Utility Targeting Computer Device Improved Heat Sink Storage Huge Storage Unit Processor Targeting Computer Weapon Particle Gun Energy Gun Particle Gun Ballistic Gun Assault Rifle Ballistic Cannon Light Cannon Launcher Rocket Launcher Build | -11 -10 -10 -10 ------- Run | Yrd Mat Min Exi Slots Evolved . | . . . . Power . | . . . . Propulsion . | . . . . Utility . | . . . . Weapon . | . . . . Parts Attached 21 | 2 17 . 2 Power 4 | . 3 . 1 Engine 4 | . 3 . 1 Core . | . . . . Reactor . | . . . . Propulsion 9 | 2 7 . . Treads 2 | 2 . . . Leg 7 | . 7 . . Wheel . | . . . . Hover . | . . . . Flight . | . . . . Utility 3 | . 3 . . Device 1 | . 1 . . Storage 1 | . 1 . . Processor 1 | . 1 . . Hackware . | . . . . Protection . | . . . . Artifact . | . . . . Weapon 5 | . 4 . 1 Energy Gun 3 | . 3 . . Energy Cannon . | . . . . Ballistic Gun . | . . . . Ballistic Cannon 1 | . 1 . . Launcher 1 | . . . 1 Special Weapon . | . . . . Impact Weapon . | . . . . Slashing Weapon . | . . . . Piercing Weapon . | . . . . Special Melee Weapon . | . . . . Unidentified Prototypes . | . . . . Parts Lost 6 | . 2 . 4 Power 2 | . 1 . 1 Propulsion 3 | . 1 . 2 Utility . | . . . . Weapon 1 | . . . 1 Highest Loss Streak 4 | . 2 . 4 To Critical Strikes 1 | . . . 1 Average Slot Usage (%) 96 | . 96 100 97 Engine 13 | . 13 14 13 Treads 2 | . 2 . . Leg 25 | . 25 28 27 Device 1 | . 1 . . Storage 14 | . 14 14 14 Processor 9 | . 8 14 14 Energy Gun 13 | . 14 14 13 Ballistic Gun 3 | . 4 . . Ballistic Cannon 10 | . 9 14 13 Peak Build Rating 10 | 6 10 10 10 Average Rating 8 | 6 8 10 9 On Entrance 8 | 6 6 10 10 Naked Turns . | . . . . Heaviest Build 89 | 13 89 89 89 Greatest Support 40 | 40 40 20 20 Greatest Overweight (x) 8 | . 4 4 8 Average Overweight (x) 1 | . 1 4 4 Largest Inventory Capacity 25 | 8 25 25 25 Average Capacity 18 | 8 16 25 25 Most Carried 25 | 6 22 23 25 Average Carried 14 | 4 12 22 23 Final Capacity 25 | 8 25 25 25 Final Carried 23 | 4 22 23 23 Class Distribution -------------------- 81% | Mutant 18% | Scavenger-Mutant Dominant Class ---------------- Mutant | -10/Materials Mutant | -10/Mines Mutant | -10/Exiles Resources | -11 -10 -10 -10 ----------- Run | Yrd Mat Min Exi Matter Collected 708 | 220 488 . . Remotely . | . . . . Salvage Created 642 | . 616 . 26 Parts 39 | . 38 . 1 Haulers Intercepted 1 | . 1 . . Recyclers Shooed 1 | . 1 . . Parts Field Recycled . | . . . . Retrieved Matter . | . . . . Parts Self-Destructed . | . . . . Prevented . | . . . . Kills | -11 -10 -10 -10 ------- Run | Yrd Mat Min Exi Combat Hostiles Destroyed 21 | . 15 . 6 Guns 13 | . 13 . . Cannons 2 | . 2 . . AOE 6 | . . . 6 Classes Destroyed 8 | . 6 . 2 Hauler 1 | . 1 . . Recycler 1 | . 1 . . Operator 1 | . 1 . . Watcher 2 | . 2 . . Swarmer 6 | . 6 . . Grunt 9 | . 9 . . Zionite 1 | . . . 1 Assembled 6 | . . . 6 Best Kill Streak 7 | . 5 . 7 Combat Bots Only 6 | . 5 . 6 Max Kills in Single Turn 5 | . 1 . 5 Gunslinging . | . . . . Exploded 5 | . . . 5 Melee . | . . . . Uniques/NPCs Destroyed . | . . . . Combat | -11 -10 -10 -10 -------- Run | Yrd Mat Min Exi Hostile Shots Fired 125 | . 80 . 45 Missed 39 | . 23 . 16 Damage Taken 1147 | . 594 . 553 Core 260 | . 91 . 169 Absorbed by Shields . | . . . . Core Remaining (%) 100 | 100 . . . Volleys Fired 53 | . 49 . 4 Largest 2 | . 2 . 1 Hottest 100 | . 100 . 33 Shots Fired 101 | . 96 . 5 Gun 83 | . 82 . 1 Cannon 14 | . 14 . . Launcher 4 | . . . 4 Special . | . . . . Kinetic 50 | . 50 . . Thermal 47 | . 46 . 1 Explosive 4 | . . . 4 Electromagnetic . | . . . . Robot Hit Streak 10 | . 10 . 2 Robot Miss Streak 5 | . 5 . 1 Penetration Max . | . . . . Secondary Targets 2 | . 2 . . Max Gunslinging Chain 1 | . 1 . . Shots Hit Robots 58 | . 55 . 3 Core Hits 41 | . 31 . 10 Critical Kills . | . . . . Critical Parts Destroyed 1 | . 1 . . Critical Strikes 2 | . 2 . . Burn 1 | . 1 . . Destroy 1 | . 1 . . Melee Attacks . | . . . . Impact . | . . . . Slashing . | . . . . Piercing . | . . . . Sneak Attacks . | . . . . Combat Hostiles . | . . . . Follow-up Attacks . | . . . . Damage Inflicted 1130 | . 755 . 375 Guns 650 | . 634 . 16 Cannons 121 | . 121 . . Explosions 359 | . . . 359 Melee . | . . . . Ramming . | . . . . Kinetic 417 | . 417 . . Thermal 354 | . 338 . 16 Explosive 359 | . . . 359 Electromagnetic . | . . . . Impact . | . . . . Slashing . | . . . . Piercing . | . . . . Highest Corruption 4 | . 4 4 4 Average Corruption 3 | . 3 4 4 Corruption Purged . | . . . . Corruption Blocked . | . . . . Effects 29 | . 18 3 8 Message Errors 12 | . 7 1 4 Matter Fused 7 | . 3 2 2 Heat Flow Errors 2 | . 2 . . Energy Discharges 3 | . 3 . . Data Loss (minor) 2 | . 1 . 1 Misfires 2 | . 1 . 1 Weapon Failures 1 | . 1 . . Overload Shots . | . . . . Overflow Damage 14 | . . . 14 Projectiles . | . . . . Explosions 14 | . . . 14 Melee . | . . . . Knockbacks . | . . . . Impact . | . . . . Kinetic . | . . . . Secondary . | . . . . Self-Inflicted Damage 33 | . . . 33 Shots 1 | . . . 1 Rammed . | . . . . Targets Rammed . | . . . . Kicked . | . . . . Crushed . | . . . . Highest Temperature 238 | . 238 . 64 Average Temperature 74 | . 78 . 37 Received Heat Transfer 304 | . 204 . 100 Siege Activations . | . . . . Robots Corrupted . | . . . . Combat Hostiles . | . . . . Parts Fried . | . . . . Impact Corruptions . | . . . . Robots Melted . | . . . . Combat Hostiles . | . . . . Parts Melted 3 | . 3 . . Heat Transferred 978 | . 941 . 37 Parts Sabotaged . | . . . . Parts Stolen . | . . . . Parts Stripped . | . . . . Power Chain Reactions . | . . . . Alert | -11 -10 -10 -10 ------- Run | Yrd Mat Min Exi Peak Influence 296 | . 296 1 . Initial 1 | . . 1 . Average 83 | . 95 1 . Maximum Alert Level 1 | . 1 . . Low Security (%) 95 | 100 94 100 . Level 1 4 | . 5 . . Level 2 . | . . . . Level 3 . | . . . . Level 4 . | . . . . Level 5 . | . . . . High Security . | . . . . Max Security . | . . . . Squads Dispatched 4 | . 4 . . Investigation . | . . . . Extermination . | . . . . Reinforcement 4 | . 4 . . Assault . | . . . . Garrison . | . . . . Intercept . | . . . . Searches Triggered . | . . . . Construction Impeded . | . . . . Haulers Reinforced . | . . . . Active Scanning Responses . | . . . . Cargo Convoy Interrupts . | . . . . Stealth | -11 -10 -10 -10 --------- Run | Yrd Mat Min Exi Distress Signals 1 | . 1 . . Communications Jammed . | . . . . Distress Signals . | . . . . Times Spotted 32 | . 24 . 8 Peak Tracking Total 11 | . 5 . 11 Tactical Retreats . | . . . . Traps | -11 -10 -10 -10 ------- Run | Yrd Mat Min Exi Traps Triggered 2 | . 2 . . Indirectly . | . . . . Trap Hack Attempts . | . . . . Triggered . | . . . . Disarmed . | . . . . Reprogrammed . | . . . . Reused . | . . . . Traps Extracted . | . . . . Installed . | . . . . Triggered . | . . . . Machines | -11 -10 -10 -10 ---------- Run | Yrd Mat Min Exi Machines Disabled 3 | . . . 3 Max in Single Turn 1 | . . . 1 Machines Repaired . | . . . . Machines Dismantled . | . . . . Machines Sabotaged . | . . . . Overloaded Fab Kills . | . . . . Hacking | -11 -10 -10 -10 --------- Run | Yrd Mat Min Exi Machines Accessed 2 | . 2 . . Terminals 2 | . 2 . . Fabricators . | . . . . Repair Stations . | . . . . Recycling Units . | . . . . Scanalyzers . | . . . . Garrison Access . | . . . . Total Hacks 3 | . 3 . . Successful 2 | . 2 . . Failed 1 | . 1 . . Catastrophic . | . . . . Database Lockouts . | . . . . Manual . | . . . . Terminals 3 | . 3 . . Fabricators . | . . . . Repair Stations . | . . . . Recycling Units . | . . . . Scanalyzers . | . . . . Garrison Access . | . . . . Terminal Hacks 2 | . 2 . . Locate Traps 2 | . 2 . . Fabricator Hacks . | . . . . Repair Station Hacks . | . . . . Recycling Unit Hacks . | . . . . Scanalyzer . | . . . . Garrison Access Hacks . | . . . . Unauthorized Hacks . | . . . . Terminals . | . . . . Fabricators . | . . . . Repair Stations . | . . . . Recycling Units . | . . . . Scanalyzers . | . . . . Garrison Access . | . . . . Data Cores Recovered . | . . . . Used . | . . . . Hacking Detections 1 | . 1 . . Full Trace Events . | . . . . Feedback Events . | . . . . Feedback Blocked . | . . . . Robot Schematics Acquired . | . . . . Robots Built . | . . . . Authchips . | . . . . Time . | . . . . Total Robot Build Rating . | . . . . Part Schematics Acquired . | . . . . Parts Built . | . . . . Authchips . | . . . . Time . | . . . . Total Part Build Rating . | . . . . Parts Repaired . | . . . . Time . | . . . . Parts Recycled . | . . . . Recycled Matter . | . . . . Retrieved Matter . | . . . . Retrieved Components . | . . . . Parts Scanalyzed . | . . . . Part Schematics Acquired . | . . . . Parts Damaged . | . . . . Bothacking | -11 -10 -10 -10 ------------ Run | Yrd Mat Min Exi Used RIF Installer . | . . . . Robots Hacked . | . . . . Non-combat . | . . . . Combat . | . . . . Robot Hacks Applied . | . . . . Relay Couplers Released . | . . . . Fabnet Peak Effective % . | . . . . Robots Rewired . | . . . . Allies Hacked . | . . . . Hacks Repelled . | . . . . Allies | -11 -10 -10 -10 -------- Run | Yrd Mat Min Exi Total Allies . | . . . . Largest Group . | . . . . Highest-Rated Group . | . . . . Highest-Rated Ally . | . . . . Total Orders . | . . . . Ally Attacks . | . . . . Total Damage . | . . . . Kills . | . . . . Allies Corrupted . | . . . . Allies Melted . | . . . . Intel | -11 -10 -10 -10 ------- Run | Yrd Mat Min Exi Robot Analysis Total . | . . . . Derelict Logs Recovered . | . . . . Drone Launches . | . . . . Drone Recoveries . | . . . . Exploration | -11 -10 -10 -10 ------------- Run | Yrd Mat Min Exi Turns Passed 2072 | 54 1495 173 350 Spaces Moved 781 | 32 621 44 84 Core . | . . . . Treads 91 | 32 59 . . Legs 690 | . 562 44 84 Wheels . | . . . . Hover . | . . . . Flight . | . . . . Fastest Speed 120 | 160 120 400 400 Average Speed 237 | 160 207 400 403 Slowest Speed 680 | 160 400 400 680 Overloaded Moves . | . . . . Propulsion Burnouts . | . . . . Robots Hopped . | . . . . Cave-ins Triggered . | . . . . Exploration Rate (%) 31 | 3 84 12 27 Regions Visited 3 Branch Regions 2 Pre-discovered Areas . | . . . . Known Exits Taken . | . . . . Unknown Exits Taken 3 | 1 1 1 . Scrap Searched . | . . . . Spaces Dug . | . . . . Terrain Destroyed . | . . . . Melee . | . . . . Projectile . | . . . . AOE . | . . . . Terrain Rammed . | . . . . Walls Destroyed . | . . . . Machines Disabled . | . . . . Actions | -11 -10 -10 -10 --------- Run | Yrd Mat Min Exi Total 909 | 35 738 44 92 Wait 14 | . 14 . . Move 778 | 31 620 43 84 Hop . | . . . . Pick Up 24 | . 23 1 . Fast Attach 5 | . 5 . . Attach 4 | . 2 . 2 Detach 2 | . . . 2 Swap 12 | 2 10 . . Drop 17 | 2 15 . . Fire 53 | . 49 . 4 Melee . | . . . . Ram . | . . . . Kick . | . . . . Crush . | . . . . Escape Stasis . | . . . . Rewire . | . . . . Trap . | . . . . Miscellaneous . | . . . . Route ------- -11/Scrapyard -10/Materials (discovered 4 exits: [*Mat x3] / [*Min]) -10/Mines -10/Exiles (discovered 1 exit: [*Min]) History --------- Turn | Location | Event 6 | -11/Scrapyard | Discovered new exit (range 1) 55 | -11/Scrapyard | Entered Materials 210 | -10/Materials | Discovered new exit (range 15) 293 | -10/Materials | Discovered new exit (range 14) 753 | -10/Materials | Discovered new exit (range 16) 939 | -10/Materials | Build established: Mutant 1273 | -10/Materials | Discovered new exit (range 15) 1550 | -10/Materials | Entered Mines 1557 | -10/Mines | Received a Rocket Launcher from a helpful Derelict 1707 | -10/Mines | Deemed a non-threat by the Exiles lab entrance 1707 | -10/Mines | Discovered new exit (range 5) 1723 | -10/Mines | Entered Exiles 1783 | -10/Exiles | Discovered new exit (range 14) 1899 | -10/Exiles | Met 8R-AWN 1979 | -10/Exiles | Met EX-HEX 2048 | -10/Exiles | Attacked by the Exiles 2062 | -10/Exiles | Core integrity fell below 50% 2073 | -10/Exiles | Core integrity fell below 20% 2073 | -10/Exiles | Destroyed by as-44667 with Assembled Blade Last Messages --------------- 02059_ as-58720 destroyed. 02059_ as-28746 destroyed. 02059_ as-30555 destroyed. 02059_ Machine disabled. 02060_ Penetrated by HV Slug. 02060_ Aluminum Leg destroyed. 02061_ as-92112 destroyed. 02061_ Machine disabled. 02063_ Destroyed Mak. Terrain Scanner. 02063_ 3J-HRO(z) destroyed. 02064_ HV Slug penetrates Machine. 02064_ HV Slug penetrates Wall. 02066_ Penetrated by HV Slug. 02066_ Critical hit (Destroy). 02066_ Aluminum Leg destroyed. 02068_ Lgt. Ion Engine destroyed. 02070_ Penetrated by HV Slug. 02070_ HV Slug penetrates Wall. 02071_ Rocket Launcher destroyed. 02072_ Penetrated by HV Slug. Map ----- +----------------------------------------------------+ | ?????????????????????????????????????????????????? | | ?????????????????????????????????????????????????? | | ?????????????????????????????????????????????????? | | ?????????????????????????????????????????????????? | | ?????????????????????????????????????????????????? | | ?????????????????????????????????????????????????? | | ?????????????????????????????????????????????????? | | ?????????????????????????????????????????????????? | | ?????????????????????????????????????????????????? | | ?????????????????????????????????????????????????? | | ?????????????????????????????????????????????????? | | ?????????????????????????????????????????????????? | | ???????????????"?????????????????????????????????? | | ???????????????" ????????????????????????????????? | | ??????????????#" ????????????????????????????????? | | ?????????????##" ???????????????????????????????? | | ?????????????#"" ??????????????????????????????? | | ?????????????"" ?????????????????????????????? | | ?????????????"" #????????????????????????????? | | ???????????? "" #????##########?????????????? | | ?????????? " ####;"""""""""##???????????? | | ?????????? """ """"##??????????? | | ????????? "" " #??????????? | | ????????? """#??????????? | | ????????? "a"#??????????? | | ????????? a@ " "##?????????# | | ????????? ""###???????# | | ?????????? """""" """#??????## | | ???????????????##""" "#????### | | ????????????????#####""" ##???# | | ????????????????????##" ##?## | | ?????????????????????#"" =% ### | | ?????????????????????#"" | | ?????????????????????"""" | | ????????????????????" "" | | ??????????????????" #"""# | | ??????????????????? ###### | | ?????????????????? ##????? | | ?????????????????? ##?????? | | ?????????????????? "" """ ""#??????? | | ??????????????????#?""" " " ""#" "##??????? | | ?????????????????????###""" """##"""""""##???????? | | ???????????????????????###""""??#########????????? | | ?????????????????????????###?????????????????????? | | ?????????????????????????????????????????????????? | | ?????????????????????????????????????????????????? | | ?????????????????????????????????????????????????? | | ?????????????????????????????????????????????????? | | ?????????????????????????????????????????????????? | | ?????????????????????????????????????????????????? | +----------------------------------------------------+ Best States ------------- Heat Dissipation 39 Energy Generation 10 Energy Capacity 250 Matter Stores 300 Matter Capacity 300 Sight Range 16 Terrain Scan Density 10 Evasion (%) 55 Targeting Accuracy 5 Recoil Reduction 2 Item Schematics ----------------- None Robot Schematics ------------------ None Fabricated ------------ Nothing Alien Tech Used ----------------- None Achievements -------------- None Challenges ------------ None Game ------ Seed DecoySpliceProcessor Manual? 0 Play Time 00:11:33 Cumulative 28.9 hours Start 2024.09.09 @ 09:46:39 End 2024.09.09 @ 09:57:13 Sessions 1 Manual Loads 0 Difficulty Rogue Special Mode None Game No. 42 Rogue 42 Adventurer 0 Explorer 0 Win Type - Total 0 Types 0/0/0/0/0/0/0/0/0 Lore% 8 Gallery% 32 Achievement% 25 Wizard Run 0 Options --------- Layout 0 ASCII 0 Keyboard 0 Movement Mouse Keybinds 1 Fullscreen 1 Font 18/TerminusBold Map View 76x50 Zoom Use 0% Tactical HUD 1 Map Filters NONE Filters NONE Steam 1 RUN: c63ae20c-bd2a-4310-80f3-1bbd26214ac9